fUSD/lending_fUSD_20260626
["ID","MTS","AMOUNT","RATE_DAILY","PERIOD"]
[426459473,1782415838000,-1273.1,0.0001541,2]
[426459477,1782415838000,-971.3,0.00015742,2]
[426459479,1782415838000,-166.66,0.00015946,2]
[426459483,1782415838000,-273.6,0.00016799,2]
[426459481,1782415838000,-273.6,0.00015999,2]
[426459480,1782415838000,-462.93616903,0.00015949,2]
[426459482,1782415838000,-273.6,0.00016399,2]
[426459484,1782415838000,-1273.1,0.00017122,2]
[426459485,1782415838000,-17886.70159126,0.00017176,2]
[426459478,1782415838000,-17886.70159126,0.00015887,2]
[426459486,1782415838000,-273.6,0.00017198,2]
[426459495,1782415838000,-247003.7150331,0.0001845,2]
[426459487,1782415838000,-233.95840008,0.00017233,2]
[426459498,1782415838000,-727.68550469,0.000186,2]
[426459493,1782415838000,-4446.5988354,0.0001845,2]
[426459491,1782415838000,-166.66,0.00017668,2]
[426459490,1782415838000,-273.6,0.00017598,2]
[426459494,1782415838000,-4949.8028461,0.0001845,2]
[426459488,1782415838000,-185.76,0.00017428,2]
[426459500,1782415838000,-1273.1,0.00018834,2]
[426459499,1782415838000,-727.68550469,0.000188,2]
[426459489,1782415838000,-199.5,0.00017486,2]
[426459492,1782415838000,-166.66,0.00018251,2]
[426459536,1782415839000,-1444.0,0.00021,2]
[426459531,1782415839000,-504.0,0.00021,2]
[426459528,1782415839000,-185.76,0.00020914,2]
[426459530,1782415839000,-1177.0,0.00021,2]
[426459529,1782415839000,-1067.0,0.00021,2]
[426459527,1782415839000,-320.8929226,0.000208,2]
[426459532,1782415839000,-281.0,0.00021,2]
[426459533,1782415839000,-604.0,0.00021,2]
[426459535,1782415839000,-292.0,0.00021,2]
[426459534,1782415839000,-264.0,0.00021,2]
[426459540,1782415839000,-17886.70159126,0.00021044,2]
[426459539,1782415839000,-532.0,0.00021,2]
[426459538,1782415839000,-419.0,0.00021,2]
[426459544,1782415839000,-383.0,0.0002113,2]
[426459545,1782415839000,-1230.0,0.0002113,2]
[426459543,1782415839000,-1277.0,0.0002113,2]
[426459546,1782415839000,-5000.0,0.00021918,2]
[426459547,1782415839000,-257.82821955,0.00022,2]
[426459541,1782415839000,-835.0,0.00021088,5]
[426459537,1782415839000,-483.0,0.00021,2]
[426459542,1782415839000,-1361.0,0.0002113,2]
[426459561,1782415840000,-281.0,0.00022,2]
[426459554,1782415840000,-311.0,0.0002,2]
[426459556,1782415840000,-9.52405964,0.00021,2]
[426459555,1782415840000,-301.47594036,0.00021,2]
[426459558,1782415840000,-958.0601311,0.00022,2]
[426459557,1782415840000,-809.17178045,0.00022,2]
[426459560,1782415840000,-504.0,0.00022,2]
[426459559,1782415840000,-218.9398689,0.00022,2]
[426459563,1782415840000,-264.0,0.00022,2]
[426459568,1782415840000,-532.0,0.00022,2]
[426459566,1782415840000,-483.0,0.00022,2]
[426459562,1782415840000,-604.0,0.00022,2]
[426459564,1782415840000,-292.0,0.00022,2]
[426459567,1782415840000,-419.0,0.00022,2]
[426459570,1782415840000,-618.77592,0.00022333,2]
[426459569,1782415840000,-727.05535878,0.00022333,2]
[426459565,1782415840000,-1444.0,0.00022,2]
[426459580,1782415843000,-91.20794615,0.00022,2]
[426459595,1782415846000,-219.79205385,0.00022,2]
[426459597,1782415846000,-3092.86,0.00022333,2]
[426459596,1782415846000,-285.20794615,0.00022333,2]
[426459603,1782415867000,3157.77320656,7.945e-05,2]
[426459600,1782415867000,1390.6957424,7.945e-05,2]
[426459602,1782415867000,199.03,7.945e-05,2]
[426459601,1782415867000,297.34551504,7.945e-05,2]
[426459604,1782415869000,300.0,0.00022,30]
[426459606,1782415928000,2834.016389,7.945e-05,2]
[426459640,1782416711000,273.6,0.00012576,2]
[426459642,1782416719000,448.71170779,0.00012553,2]
[426459641,1782416719000,211.79829221,0.00012553,2]
[426459649,1782416771000,200.0,0.00012562,2]
[426459663,1782416796000,276.61,0.00012538,2]
[426459666,1782416859000,241.51795091,0.00012562,2]
[426459668,1782416859000,605.9177151,0.00012311,2]
[426459667,1782416859000,836.41943194,0.00012562,2]
[426459669,1782416883000,320.21,0.00037236,120]
[426459672,1782416969000,-975.46947132,0.00012694,2]
[426459674,1782416986000,2067.40973065,0.0001263,2]
[426459675,1782416986000,390.54960139,0.0001263,2]
[426459673,1782416986000,675.97588096,0.0001263,2]
[426459695,1782417032000,-165.73,0.00012427,2]
[426459694,1782417032000,-165.73,0.00012181,2]
[426459696,1782417032000,-165.73,0.00012673,2]
[426459698,1782417032000,-151.0,0.00012694,2]
[426459692,1782417032000,-165.73,0.00011689,2]
[426459693,1782417032000,-165.73,0.00011935,2]
[426459699,1782417032000,-150.0,0.00012694,2]
[426459703,1782417032000,-151.0,0.00012694,2]
[426459700,1782417032000,-152.0,0.00012694,2]
[426459702,1782417032000,-151.0,0.00012694,2]
[426459697,1782417032000,-153.0,0.00012694,2]
[426460054,1782417040000,-500.0,0.00013361,2]
[426460046,1782417040000,-500.0,0.00013361,2]
[426460050,1782417040000,-500.0,0.00013361,2]
[426460048,1782417040000,-500.0,0.00013361,2]
[426460037,1782417040000,-500.0,0.00013361,2]
[426460033,1782417040000,-500.0,0.00013361,2]
[426460031,1782417040000,-500.0,0.00013361,2]
[426460020,1782417040000,-500.0,0.00013361,2]
[426460043,1782417040000,-500.0,0.00013361,2]
[426460041,1782417040000,-500.0,0.00013361,2]
[426460039,1782417040000,-500.0,0.00013361,2]
[426460035,1782417040000,-500.0,0.00013361,2]
[426460052,1782417040000,-500.0,0.00013361,2]
[426460056,1782417040000,-45457.93747506,0.00013465,2]
[426460066,1782417040000,-152.0,0.00013497,2]
[426460058,1782417040000,-150.0,0.00013496,2]
[426460062,1782417040000,-150.0,0.00013497,2]
[426460060,1782417040000,-380.93046007,0.00013497,2]
[426460072,1782417040000,-151.0,0.00013497,2]
[426460070,1782417040000,-152.0,0.00013497,2]
[426460068,1782417040000,-153.0,0.00013497,2]
[426460074,1782417040000,-273.6,0.00013519,2]
[426460087,1782417040000,-153.0,0.00013565,2]
[426460084,1782417040000,-905.0,0.00013565,2]
[426460076,1782417040000,-1000.0,0.00013564,2]
[426460080,1782417040000,-899.0,0.00013565,2]
[426460022,1782417040000,-500.0,0.00013361,2]
[426460064,1782417040000,-150.0,0.00013497,2]
[426460029,1782417040000,-500.0,0.00013361,2]
[426459981,1782417040000,-500.0,0.00013361,2]
[426460024,1782417040000,-500.0,0.00013361,2]
[426459969,1782417040000,-500.0,0.00013361,2]
[426459967,1782417040000,-500.0,0.00013361,2]
[426459971,1782417040000,-500.0,0.00013361,2]
[426460092,1782417040000,-150.0,0.00013565,2]
[426459973,1782417040000,-500.0,0.00013361,2]
[426459974,1782417040000,-500.0,0.00013361,2]
[426459976,1782417040000,-500.0,0.00013361,2]
[426459977,1782417040000,-500.0,0.00013361,2]
[426459989,1782417040000,-500.0,0.00013361,2]
[426459987,1782417040000,-500.0,0.00013361,2]
[426459979,1782417040000,-500.0,0.00013361,2]
[426459985,1782417040000,-500.0,0.00013361,2]
[426459983,1782417040000,-500.0,0.00013361,2]
[426459993,1782417040000,-500.0,0.00013361,2]
[426459991,1782417040000,-500.0,0.00013361,2]
[426460005,1782417040000,-500.0,0.00013361,2]
[426459995,1782417040000,-500.0,0.00013361,2]
[426460008,1782417040000,-500.0,0.00013361,2]
[426460010,1782417040000,-500.0,0.00013361,2]
[426459999,1782417040000,-500.0,0.00013361,2]
[426459997,1782417040000,-500.0,0.00013361,2]
[426460003,1782417040000,-500.0,0.00013361,2]
[426460001,1782417040000,-500.0,0.00013361,2]
[426460012,1782417040000,-500.0,0.00013361,2]
[426460016,1782417040000,-500.0,0.00013361,2]
[426460018,1782417040000,-500.0,0.00013361,2]
[426460014,1782417040000,-500.0,0.00013361,2]
[426460027,1782417040000,-290.53233511,0.00013361,2]
[426460094,1782417040000,-913.0,0.00013565,2]
[426460195,1782417040000,-509.76320074,0.00014697,2]
[426460078,1782417040000,-150.0,0.00013565,2]
[426460157,1782417040000,-893.0,0.00013803,2]
[426460159,1782417040000,-899.0,0.00013803,2]
[426460161,1782417040000,-150.0,0.00013803,2]
[426460162,1782417040000,-902.0,0.00013803,2]
[426460175,1782417040000,-17646.03852229,0.000139,2]
[426460164,1782417040000,-151.0,0.00013803,2]
[426460155,1782417040000,-898.0,0.00013803,2]
[426460170,1782417040000,-273.6,0.00013834,2]
[426460177,1782417040000,-166.66666666,0.00013943,2]
[426460168,1782417040000,-910.0,0.00013803,2]
[426460176,1782417040000,-1254.41808677,0.00013943,2]
[426460166,1782417040000,-908.0,0.00013803,2]
[426460173,1782417040000,-160.0,0.00013888,2]
[426460178,1782417040000,-500.0,0.00013946,2]
[426460180,1782417040000,-600.0,0.00013963,2]
[426460184,1782417040000,-250.0,0.00014,2]
[426460182,1782417040000,-250.0,0.00013963,2]
[426460199,1782417040000,-500.0,0.00014697,2]
[426460188,1782417040000,-500.0,0.00014697,2]
[426460186,1782417040000,-150.0,0.00014616,2]
[426460190,1782417040000,-500.0,0.00014697,2]
[426460201,1782417040000,-500.0,0.00014697,2]
[426460203,1782417040000,-256.71602692,0.00014698,2]
[426460194,1782417040000,-500.0,0.00014697,2]
[426460192,1782417040000,-500.0,0.00014697,2]
[426460197,1782417040000,-500.0,0.00014697,2]
[426460205,1782417040000,-500.0,0.00014698,2]
[426460153,1782417040000,-902.0,0.00013803,2]
[426460149,1782417040000,-895.0,0.00013734,2]
[426460082,1782417040000,-916.0,0.00013565,2]
[426460151,1782417040000,-11371.206,0.00013747,2]
[426460147,1782417040000,-899.0,0.00013734,2]
[426460088,1782417040000,-914.0,0.00013565,2]
[426460090,1782417040000,-900.0,0.00013565,2]
[426460096,1782417040000,-905.0,0.00013565,2]
[426460098,1782417040000,-151.0,0.00013565,2]
[426460102,1782417040000,-891.0,0.00013565,2]
[426460111,1782417040000,-915.0,0.00013565,2]
[426460105,1782417040000,-894.0,0.00013565,2]
[426460107,1782417040000,-152.0,0.00013565,2]
[426460108,1782417040000,-910.0,0.00013565,2]
[426460114,1782417040000,-151.0,0.00013634,2]
[426460113,1782417040000,-151.0,0.00013634,2]
[426460120,1782417040000,-903.0,0.00013644,2]
[426460101,1782417040000,-907.0,0.00013565,2]
[426460116,1782417040000,-151.0,0.00013634,2]
[426460118,1782417040000,-885.0,0.00013638,2]
[426460134,1782417040000,-913.0,0.00013734,2]
[426460142,1782417040000,-898.0,0.00013734,2]
[426460140,1782417040000,-152.0,0.00013734,2]
[426460138,1782417040000,-913.0,0.00013734,2]
[426460132,1782417040000,-907.0,0.00013734,2]
[426460136,1782417040000,-150.0,0.00013734,2]
[426460145,1782417040000,-902.0,0.00013734,2]
[426460128,1782417040000,-897.0,0.00013681,2]
[426460125,1782417040000,-917.0,0.00013656,2]
[426460126,1782417040000,-894.0,0.00013664,2]
[426460122,1782417040000,-903.0,0.00013656,2]
[426460130,1782417040000,-908.0,0.00013706,2]
[426460281,1782417041000,-3059.94,0.00014781,2]
[426460295,1782417041000,-17646.03852223,0.00016665,2]
[426460289,1782417041000,-150.0,0.00015347,2]
[426460283,1782417041000,-166.66,0.00015064,2]
[426460279,1782417041000,-1018.48,0.00014749,2]
[426460265,1782417041000,-500.0,0.00014699,2]
[426460277,1782417041000,-500.0,0.00014699,2]
[426460269,1782417041000,-500.0,0.00014699,2]
[426460275,1782417041000,-500.0,0.00014699,2]
[426460273,1782417041000,-500.0,0.00014699,2]
[426460291,1782417041000,-300.0,0.00016,2]
[426460271,1782417041000,-500.0,0.00014699,2]
[426460297,1782417041000,-237.27381556,0.00017453,2]
[426460326,1782417041000,-214.71556441,0.00019,2]
[426460287,1782417041000,-17646.03852223,0.00015283,2]
[426460299,1782417041000,-276.61,0.00017553,2]
[426460293,1782417041000,-1018.48,0.00016388,2]
[426460305,1782417041000,-1018.48,0.00018027,2]
[426460303,1782417041000,-350.0,0.00018,2]
[426460307,1782417041000,-17646.03852223,0.00018048,2]
[426460309,1782417041000,-785.16261627,0.000185,2]
[426460313,1782417041000,-785.16261627,0.000187,2]
[426460317,1782417041000,-785.16261627,0.000189,2]
[426460328,1782417041000,-785.16261627,0.000192,2]
[426460315,1782417041000,-214.71556441,0.000187,2]
[426460324,1782417041000,-785.16261627,0.00019,2]
[426460263,1782417041000,-500.0,0.00014699,2]
[426460301,1782417041000,-199.5,0.00017726,2]
[426460267,1782417041000,-500.0,0.00014699,2]
[426460251,1782417041000,-500.0,0.00014699,2]
[426460259,1782417041000,-500.0,0.00014699,2]
[426460320,1782417041000,-214.71556441,0.000189,2]
[426460207,1782417041000,-500.0,0.00014698,2]
[426460209,1782417041000,-176.30004464,0.00014698,2]
[426460216,1782417041000,-500.0,0.00014698,2]
[426460218,1782417041000,-500.0,0.00014698,2]
[426460220,1782417041000,-500.0,0.00014698,2]
[426460213,1782417041000,-577.10367307,0.00014698,2]
[426460211,1782417041000,-282.09473977,0.00014698,2]
[426460222,1782417041000,-500.0,0.00014698,2]
[426460214,1782417041000,-567.54335002,0.00014698,2]
[426460226,1782417041000,-500.0,0.00014698,2]
[426460224,1782417041000,-500.0,0.00014698,2]
[426460228,1782417041000,-500.0,0.00014698,2]
[426460230,1782417041000,-500.0,0.00014699,2]
[426460232,1782417041000,-500.0,0.00014699,2]
[426460240,1782417041000,-500.0,0.00014699,2]
[426460236,1782417041000,-573.64226802,0.00014699,2]
[426460238,1782417041000,-504.82907891,0.00014699,2]
[426460234,1782417041000,-500.0,0.00014699,2]
[426460241,1782417041000,-500.0,0.00014699,2]
[426460245,1782417041000,-500.0,0.00014699,2]
[426460253,1782417041000,-500.0,0.00014699,2]
[426460247,1782417041000,-500.0,0.00014699,2]
[426460249,1782417041000,-500.0,0.00014699,2]
[426460243,1782417041000,-500.0,0.00014699,2]
[426460255,1782417041000,-500.0,0.00014699,2]
[426460257,1782417041000,-500.0,0.00014699,2]
[426460261,1782417041000,-500.0,0.00014699,2]
[426460311,1782417041000,-214.71556441,0.000185,2]
[426460285,1782417041000,-200.0,0.00015089,2]
[426460330,1782417041000,-214.71556441,0.000192,2]
[426460396,1782417041000,-1361.0,0.00020833,2]
[426460400,1782417041000,-383.0,0.00020833,2]
[426460390,1782417041000,-320.8929226,0.000208,2]
[426460388,1782417041000,-320.8929226,0.000206,2]
[426460398,1782417041000,-1277.0,0.00020833,2]
[426460406,1782417041000,-3649.0,0.00020833,2]
[426460408,1782417041000,-6084.0,0.00020833,2]
[426460322,1782417041000,-500.0,0.00018904,2]
[426460413,1782417041000,-934.0,0.00021,2]
[426460411,1782417041000,-200.53577154,0.00020957,2]
[426460423,1782417041000,-251.0,0.00021,2]
[426460417,1782417041000,-478.0,0.00021,2]
[426460419,1782417041000,-267.0,0.00021,2]
[426460392,1782417041000,-17646.03852223,0.00020813,2]
[426460415,1782417041000,-1139.0,0.00021,2]
[426460427,1782417041000,-1391.0,0.00021,2]
[426460425,1782417041000,-295.0,0.00021,2]
[426460429,1782417041000,-459.0,0.00021,2]
[426460434,1782417041000,-156.0,0.00021,2]
[426460432,1782417041000,-233.36793174,0.00021,2]
[426460438,1782417041000,-556.0,0.00021,2]
[426460442,1782417041000,-500.0,0.00021056,2]
[426460440,1782417041000,-500.0,0.00021056,2]
[426460444,1782417041000,-500.0,0.00021056,2]
[426460450,1782417041000,-61116.79610558,0.00021057,2]
[426460436,1782417041000,-437.0,0.00021,2]
[426460448,1782417041000,-500.0,0.00021056,2]
[426460446,1782417041000,-500.0,0.00021056,2]
[426460421,1782417041000,-585.0,0.00021,2]
[426460404,1782417041000,-200.0,0.00020833,2]
[426460409,1782417041000,-151.0,0.00020833,2]
[426460394,1782417041000,-3562.0,0.00020833,2]
[426460332,1782417041000,-185.76,0.00019385,2]
[426460334,1782417041000,-17646.03852223,0.00019431,2]
[426460336,1782417041000,-1018.48,0.00019666,2]
[426460340,1782417041000,-934.0,0.0002,2]
[426460402,1782417041000,-1230.0,0.00020833,2]
[426460347,1782417041000,-478.0,0.0002,2]
[426460342,1782417041000,-1139.0,0.0002,2]
[426460345,1782417041000,-400.0,0.0002,2]
[426460349,1782417041000,-267.0,0.0002,2]
[426460351,1782417041000,-585.0,0.0002,2]
[426460354,1782417041000,-295.0,0.0002,2]
[426460356,1782417041000,-320.8929226,0.0002,2]
[426460353,1782417041000,-251.0,0.0002,2]
[426460358,1782417041000,-1391.0,0.0002,2]
[426460338,1782417041000,-1000.0,0.00019932,2]
[426460370,1782417041000,-556.0,0.0002,2]
[426460363,1782417041000,-152.0,0.0002,2]
[426460386,1782417041000,-289.40019274,0.0002058,2]
[426460384,1782417041000,-150.0,0.0002058,2]
[426460382,1782417041000,-150.0,0.0002058,2]
[426460374,1782417041000,-320.8929226,0.000204,2]
[426460376,1782417041000,-150.0,0.0002058,2]
[426460372,1782417041000,-320.8929226,0.000202,2]
[426460380,1782417041000,-150.0,0.0002058,2]
[426460454,1782417041000,-7367.48667208,0.00021057,2]
[426460378,1782417041000,-150.0,0.0002058,2]
[426460367,1782417041000,-15957.93,0.0002,2]
[426460365,1782417041000,-437.0,0.0002,2]
[426460361,1782417041000,-459.0,0.0002,2]
[426460463,1782417042000,-1161.66341644,0.00021057,2]
[426460458,1782417042000,-316.27566064,0.00021057,2]
[426460460,1782417042000,-3857.15505304,0.00021057,2]
[426460638,1782417043000,-237.27381556,0.00019088,2]
[426460640,1782417043000,-264.0,0.0002,2]
[426460665,1782417043000,-7587.77211594,0.00021057,2]
[426460644,1782417043000,-377.38486244,0.00021057,2]
[426460658,1782417043000,-817.24489353,0.00021057,2]
[426460642,1782417043000,-264.0,0.00021,2]
[426461065,1782417046000,-5938.6,0.00021057,2]
[426461057,1782417046000,-4524.0,0.00021057,2]
[426461048,1782417046000,-216.0,0.00020833,2]
[426461050,1782417046000,-2364.056164,0.00021057,2]
[426461634,1782417196000,171.22,0.00025709,120]
[426461636,1782417222000,1864.70985113,0.000114,2]
[426461637,1782417285000,500.0,0.00037239,120]
[426461640,1782417286000,500.0,0.00037239,120]
[426461639,1782417286000,500.0,0.00037239,120]
[426461638,1782417286000,500.0,0.00037239,120]
[426461641,1782417287000,500.0,0.00037239,120]
[426461644,1782417287000,500.0,0.00037239,120]
[426461643,1782417287000,500.0,0.00037239,120]
[426461642,1782417287000,500.0,0.00037239,120]
[426461646,1782417288000,610.972142,0.00037239,120]
[426461645,1782417288000,500.0,0.00037239,120]
[426461647,1782417340000,616.71989543,0.00031507,120]
[426461667,1782417699000,501.15048295,0.00030493,120]
[426461671,1782417838000,150.0,0.00011272,2]
[426461672,1782417920000,1078.56531657,0.00011364,2]
[426461677,1782418148000,-166.67,0.00011621,2]
[426461679,1782418148000,-500.0,0.00011725,2]
[426461680,1782418148000,-150.0,0.00011828,2]
[426461681,1782418148000,-250.0,0.00011866,2]
[426461682,1782418148000,-72.69940566,0.00011927,2]
[426461678,1782418148000,-250.0,0.00011673,2]
[426461683,1782418171000,185.700613,0.0002,120]
[426461686,1782418209000,-504.53059434,0.00011927,2]
[426461685,1782418209000,-150.0,0.0001175,2]
[426461684,1782418209000,-2593.6747517,0.00011573,2]
[426461688,1782418209000,-914.81479252,0.00011956,2]
[426461691,1782418209000,-3604.68055352,0.00012136,2]
[426461690,1782418209000,-2539.865761,0.00012136,2]
[426461689,1782418209000,-150.0,0.00012122,2]
[426461692,1782418209000,-1311.32058748,0.00012136,2]
[426461693,1782418209000,-1127.765737,0.00012198,2]
[426461687,1782418209000,-356.47520748,0.00011956,2]
[426461699,1782418210000,-1000.0,0.00012313,2]
[426461694,1782418210000,-166.67,0.00012233,2]
[426461696,1782418210000,-1.07577096,0.00012313,2]
[426461695,1782418210000,-998.92422904,0.00012313,2]
[426461698,1782418210000,-1000.0,0.00012313,2]
[426461700,1782418210000,-168.604255,0.00012313,2]
[426461701,1782418210000,-194.35,0.00012313,2]
[426461703,1782418210000,-90.65052756,0.00012315,2]
[426461697,1782418210000,-1000.0,0.00012313,2]
[426461704,1782418210000,-3604.68055352,0.00012315,2]
[426461706,1782418210000,-2699.9783654,0.00012315,2]
[426461705,1782418210000,-3604.68055352,0.00012315,2]
[426461707,1782418210000,-841.69,0.00012315,2]
[426461709,1782418210000,-898.70781188,0.00012315,2]
[426461708,1782418210000,-63.01218812,0.00012315,2]
[426461710,1782418210000,-2705.97274164,0.00012316,2]
[426461711,1782418210000,-2350.41809355,0.00012316,2]
[426461712,1782418210000,-3604.68055352,0.00012316,2]
[426461702,1782418210000,-150.0,0.00012315,2]
[426461744,1782418232000,-300.0,0.00013463,2]
[426461741,1782418232000,-9673.78846577,0.00013365,2]
[426461748,1782418232000,-167.4,0.00013658,2]
[426461747,1782418232000,-1000.0,0.00013637,2]
[426461749,1782418232000,-500.0,0.00013698,2]
[426461746,1782418232000,-666.0,0.00013463,2]
[426461742,1782418232000,-200.0,0.00013375,2]
[426461743,1782418232000,-255.0,0.00013399,2]
[426461751,1782418232000,-584.84510421,0.00013698,2]
[426461755,1782418232000,-250.0,0.00014,2]
[426461738,1782418232000,-308.36353757,0.00013365,2]
[426461745,1782418232000,-666.0,0.00013463,2]
[426461753,1782418232000,-500.0,0.00013698,2]
[426461752,1782418232000,-500.0,0.00013698,2]
[426461750,1782418232000,-500.0,0.00013698,2]
[426461732,1782418232000,-801.21935636,0.00013264,2]
[426461740,1782418232000,-2073.71773782,0.00013365,2]
[426461734,1782418232000,-18489.08466764,0.00013264,2]
[426461721,1782418232000,-9999.99,0.00012313,2]
[426461722,1782418232000,-216.45114417,0.00012326,2]
[426461723,1782418232000,-1568.76037115,0.00012564,2]
[426461724,1782418232000,-218.53,0.00012578,2]
[426461727,1782418232000,-85.84823101,0.00012711,2]
[426461725,1782418232000,-167.4,0.00012617,2]
[426461728,1782418232000,-166.67,0.00012844,2]
[426461729,1782418232000,-238.9411041,0.00013,2]
[426461730,1782418232000,-210.06,0.00013074,2]
[426461726,1782418232000,-74.15176899,0.00012711,2]
[426461731,1782418232000,-167.4,0.00013137,2]
[426461739,1782418232000,-384.53233141,0.00013365,2]
[426461735,1782418232000,-971.3,0.00013352,2]
[426461733,1782418232000,-393.653476,0.00013264,2]
[426461737,1782418232000,-1000.0,0.00013364,2]
[426461736,1782418232000,-20022.7045,0.00013364,2]
[426461754,1782418232000,-150.0,0.00013722,2]
[426461763,1782418232000,-18747.99,0.00014814,2]
[426461757,1782418232000,-167.4,0.00014179,2]
[426461776,1782418232000,-22131.0,0.00018411,2]
[426461780,1782418232000,-500.0,0.00018531,2]
[426461778,1782418232000,-4593.22377018,0.00018432,2]
[426461784,1782418232000,-500.0,0.00018531,2]
[426461781,1782418232000,-179.70121885,0.00018531,2]
[426461783,1782418232000,-197.46631784,0.00018531,2]
[426461779,1782418232000,-444.84315437,0.00018522,2]
[426461782,1782418232000,-197.28034501,0.00018531,2]
[426461788,1782418232000,-253.97257115,0.00018531,2]
[426461787,1782418232000,-500.0,0.00018531,2]
[426461789,1782418232000,-500.0,0.00018531,2]
[426461792,1782418232000,-797.20572407,0.00018532,2]
[426461790,1782418232000,-69265.30923753,0.00018532,2]
[426461791,1782418232000,-1254.41808677,0.00018532,2]
[426461756,1782418232000,-218.53,0.00014151,2]
[426461777,1782418232000,-2047.7889057,0.00018432,2]
[426461774,1782418232000,-1508.64438965,0.000184,2]
[426461786,1782418232000,-500.0,0.00018531,2]
[426461785,1782418232000,-500.0,0.00018531,2]
[426461775,1782418232000,-429.43112881,0.000184,2]
[426461759,1782418232000,-11747.50620353,0.0001462,2]
[426461761,1782418232000,-5260.6939,0.0001474,2]
[426461760,1782418232000,-167.4,0.00014699,2]
[426461758,1782418232000,-150.0,0.00014581,2]
[426461764,1782418232000,-218.53,0.00015723,2]
[426461773,1782418232000,-11747.50620353,0.00018384,2]
[426461762,1782418232000,-1177.27,0.000148,2]
[426461772,1782418232000,-500.0,0.00017479,2]
[426461767,1782418232000,-308.36353751,0.00016285,2]
[426461765,1782418232000,-11747.50620353,0.00015875,2]
[426461768,1782418232000,-150.0,0.0001675,2]
[426461769,1782418232000,-11747.50620353,0.00017129,2]
[426461771,1782418232000,-218.53,0.00017295,2]
[426461766,1782418232000,-300.0,0.00016,2]
[426461770,1782418232000,-171.22,0.0001714,2]
[426461814,1782418238000,-500.0,0.00014813,2]
[426461816,1782418238000,-500.0,0.00014813,2]
[426461818,1782418238000,-500.0,0.00014813,2]
[426461819,1782418238000,-251.74324468,0.00014813,2]
[426461820,1782418238000,-500.0,0.00014813,2]
[426461829,1782418238000,-294838.62776743,0.00018532,2]
[426461828,1782418238000,-500.0,0.00018531,2]
[426461830,1782418238000,-3714.5409648,0.00018532,2]
[426461817,1782418238000,-500.0,0.00014813,2]
[426461827,1782418238000,-500.0,0.00014813,2]
[426461826,1782418238000,-500.0,0.00014813,2]
[426461824,1782418238000,-500.0,0.00014813,2]
[426461813,1782418238000,-500.0,0.00014813,2]
[426461823,1782418238000,-500.0,0.00014813,2]
[426461822,1782418238000,-500.0,0.00014813,2]
[426461815,1782418238000,-500.0,0.00014813,2]
[426461812,1782418238000,-500.0,0.00014813,2]
[426461809,1782418238000,-500.0,0.00014813,2]
[426461811,1782418238000,-500.0,0.00014813,2]
[426461810,1782418238000,-500.0,0.00014813,2]
[426461808,1782418238000,-500.0,0.00014813,2]
[426461807,1782418238000,-500.0,0.00014813,2]
[426461806,1782418238000,-500.0,0.00014813,2]
[426461832,1782418238000,-256.654647,0.00018532,2]